[Event "10th Cesme Open-A 2024"]
[Site "Cesme"]
[Date "2024.06.27"]
[Round "6"]
[White "Caputcuoglu, Zeki Berke"]
[Black "Oney, Adil Feridun"]
[Result "1-0"]
[ECO "E63"]
[WhiteElo "2239"]
[BlackElo "2014"]
[Annotator "RC"]
[PlyCount "80"]
[EventDate "2024.06.23"]
[EventType "swiss"]
[EventCountry "TUR"]
[SourceTitle "playchess.com"]
[Source "ChessBase"]
[SourceQuality "1"]
[TimeControl "5400+30"]

1. Nf3 {[%emt 0:08:00]} Nf6 {[%emt 0:02:00]} 2. c4 {[%emt 0:00:30]} g6 {[%emt 0:01:30]} 3. g3 {[%emt 0:00:30]} Bg7 {[%emt 0:02:30]} 4. Bg2 {[%emt 0:01:30]} O-O {[%emt 0:00:00]} 5. d4 {[%emt 0:00:00]} d6 {[%emt 0:01:00]} 6. O-O {[%emt 0:00:00]} Nc6 {[%emt 0:01:30]} 7. Nc3 {[%emt 0:00:30]} a6 {[%emt 0:01:30]} 8. h3 {[%emt 0:00:30]} Rb8 {[%emt 0:01:30]} 9. e4 {[%emt 0:01:30]} Nd7 {[%emt 0:03:30]} 10. Be3 {[%emt 0:00:30]} Na5 {[%emt 0:17:30]} 11. b3 {[%emt 0:02:30]} c5 {[%emt 0:01:30]} 12. Rc1 {[%emt 0:00:30]} cxd4 {[%emt 0:06:30]} 13. Nxd4 {[%emt 0:01:30]} Nc6 {[%emt 0:00:30]} 14. Nde2 {[%emt 0:03:30]} Nc5 {[%emt 0:14:30]} 15. f4 {[%emt 0:05:30]} Ne6 {[%emt 0:01:30]} 16. Nd5 {[%emt 0:06:30]} b6 {[%emt 0:05:30]} 17. Qd2 {[%emt 0:10:30]} f5 {[%emt 0:07:30]} 18. exf5 {[%emt 0:02:30]} gxf5 {[%emt 0:00:30]} 19. b4 {[%emt 0:00:30]} Rf7 {[%emt 0:03:30]} 20. g4 {[%emt 0:03:30]} Nf8 {[%emt 0:01:30]} 21. g5 {[%emt 0:00:30]} Bd7 {[%emt 0:00:30]} 22. a3 {[%emt 0:03:30]} e6 {[%emt 0:02:30]} 23. Ndc3 {[%emt 0:00:30]} Ng6 {[%emt 0:04:33]} 24. Qxd6 {[%emt 0:03:30]} Nh4 {[%emt 0:01:12]} 25. Bh1 {[%emt 0:01:30]} Qe8 {[%emt 0:01:46]} 26. Qd2 {[%emt 0:06:30]} Ne7 {[%emt 0:01:12]} 27. Qe1 {[%emt 0:06:30]} Nhg6 {[%emt 0:00:46]} 28. Nd4 {[%emt 0:03:30]} e5 {[%emt 0:01:25]} 29. fxe5 {[%emt 0:01:30]} f4 {[%emt 0:00:08]} 30. e6 {[%emt 0:02:30]} Bxe6 {[%emt 0:01:39]} 31. Nxe6 {[%emt 0:00:30]} fxe3 {[%emt 0:00:15]} 32. Nxg7 {[%emt 0:00:30]} Rxg7 {[%emt 0:00:15]} 33. Qxe3 {[%emt 0:00:30]} Qc8 {[%emt 0:00:38]} 34. Ne4 {[%emt 0:01:30]} Nf5 {[%emt 0:00:32]} 35. Nf6+ {[%emt 0:00:30]} Kh8 {[%emt 0:00:08]} 36. Qc3 {[%emt 0:00:30]} Ngh4 {[%emt 0:01:18]} 37. Nh5 {[%emt 0:03:30]} Qd8 {[%emt 0:01:22]} 38. Nxg7 {[%emt 0:00:30]} Qxg5+ {[%emt 0:00:00]} 39. Kh2 {[%emt 0:00:00]} Nxg7 {[%emt 0:00:11]} 40. Qf6 {[%emt 0:01:00]} Qxf6 {[%emt 0:02:56]} 1-0

[Event "10th Cesme Open-A 2024"]
[Site "Cesme"]
[Date "2024.06.27"]
[Round "6"]
[White "Ozcan, Kaan"]
[Black "Rasulov, Vugar"]
[Result "0-1"]
[ECO "A50"]
[WhiteElo "2227"]
[BlackElo "2557"]
[Annotator "TA"]
[PlyCount "98"]
[EventDate "2024.06.23"]
[EventType "swiss"]
[EventCountry "TUR"]
[SourceTitle "playchess.com"]
[Source "ChessBase"]
[SourceQuality "1"]
[TimeControl "5400+30"]

{[%evp 9,98,61,77,72,94,46,37,52,48,41,47,47,47,37,52,18,45,0,39,20,23,-47,-35,-34,-32,-154,-145,-200,-172,-207,-205,-295,-293,-317,-308,-292,-203,-278,-281,-265,-283,-337,-329,-331,-335,-297,-315,-412,-410,-536,-530,-668,-668,-645,-543,-520,-377,-345,-308,-314,-318,-309,-310,-477,-479,-458,-447,-425,-333,-610,-466,-728,-705,-646,-641,-970,-1347,-2331,-670,-2004,-4008,-2454,-2283,-29967,-29969,-29961,-29956,-6070,-5720,-29988,-29989]} 1. d4 {[%emt 0:01:00]} Nf6 {[%emt 0:01:00]} 2. c4 {[%emt 0:00:00]} Nc6 {[%emt 0:00:30]} 3. Nc3 {[%emt 0:01:00]} e5 {[%emt 0:02:30]} 4. d5 {[%emt 0:01:30]} Ne7 {[%emt 0:00:30][%cal Bc6e7,Be7g6,Bg6f8,Bf8d7,Bd7c5][%mdl 32]} 5. Nf3 {[%emt 0:00:30]} Ng6 {[%emt 0:00:30]} 6. h4 {[%emt 0:04:30][%cal Bh2h4,Bh4h5,Bh5h6][%mdl 32] Black must now prevent h5.} d6 {[%emt 0:06:30]} 7. Qc2 {[%emt 0:11:30]} (7. h5 $16 Nf4 8. h6) 7... Be7 $14 {[%emt 0:03:30]} 8. h5 {[%emt 0:08:30] White is slightly better.} Nf8 {[%emt 0:00:30]} 9. h6 {[%emt 0:00:30]} g6 {[%emt 0:00:00]} 10. e4 {[%emt 0:01:30]} N8d7 {[%emt 0:00:00]} 11. Be2 {[%emt 0:01:30]} O-O {[%emt 0:00:30]} 12. Bd2 {[%emt 0:01:30]} a5 {[%emt 0:00:00]} 13. O-O-O {[%emt 0:03:30]} Nc5 {[%emt 0:02:00]} 14. Ne1 {[%emt 0:04:30]} c6 {[%emt 0:01:30]} 15. dxc6 {[%emt 0:09:30]} (15. Be3 $11) 15... bxc6 $15 {[%emt 0:00:00]} 16. Be3 {[%emt 0:00:30] [#] Threatens to win with Bxc5.} Ne6 {[%emt 0:01:00]} 17. c5 {[%emt 0:07:30] White is now going downhill.} d5 $17 {[%emt 0:03:30]} 18. exd5 {[%emt 0:06:30]} (18. Bc4 $17 d4 (18... Nxc5 19. exd5 Qc7 20. dxc6 $11) 19. Na4) 18... cxd5 $19 {[%emt 0:00:30]} (18... Nxd5 19. Nf3 $11) 19. Bf3 {[%emt 0:09:30]} Bb7 {[%emt 0:01:30]} (19... Nxc5 20. Nxd5 Nxd5 21. Rxd5 $16 (21. Bxc5 $2 Bg5+ 22. Kb1 Bf5 $19) (21. Bxd5 Bf5 $17)) 20. g4 {[%emt 0:06:28]} (20. Kb1 {might work better.}) 20... Bxc5 {[%emt 0:00:30]} ({Less strong is} 20... Nxc5 21. g5 Nfe4 (21... Nfd7 22. Bxd5 Bxg5 23. Bxb7 $14) 22. Bxc5 Nxc5 23. Bxd5 $15) 21. Bxc5 {[%emt 0:01:53]} Nxc5 {[%emt 0:00:30]} 22. Kb1 {[%emt 0:07:08][%cal Oc3d5]} Ne6 {[%emt 0:03:30]} 23. Qe2 {[%emt 0:06:16]} Qb8 {[%emt 0:01:30]} 24. g5 {[%emt 0:01:26]} d4 {[%emt 0:01:30]} ({Much less strong is} 24... Nxg5 25. Nxd5 Nxd5 26. Bxd5 $19) 25. Bxb7 {[%emt 0:03:40]} Qxb7 {[%emt 0:00:30]} 26. Qf3 {[%emt 0:00:00]} Rfb8 {[%emt 0:01:30]} 27. Qxb7 {[%emt 0:00:56]} Rxb7 {[%emt 0:00:30]} 28. gxf6 {[%emt 0:00:30]} dxc3 {[%emt 0:00:00]} 29. b3 {[%emt 0:01:14]} a4 {[%emt 0:00:00]} 30. Nf3 {[%emt 0:00:30]} axb3 {[%emt 0:00:30]} 31. axb3 {[%emt 0:00:00]} Rxb3+ {[%emt 0:02:30]} 32. Kc2 {[%emt 0:00:00]} Rb2+ {[%emt 0:00:30]} 33. Kxc3 {[%emt 0:00:17]} Rxf2 {[%emt 0:00:30]} 34. Nxe5 {[%emt 0:00:30]} Rc8+ {[%emt 0:00:00]} ({Don't take} 34... Rf5 35. Rhe1 $19) 35. Kd3 {[%emt 0:00:35]} Rxf6 {[%emt 0:00:00]} 36. Rdf1 {[%emt 0:01:15]} (36. Nd7 $142 Rf5 37. Ke3) 36... Nc5+ {[%emt 0:00:00]} 37. Ke3 {[%emt 0:00:20]} Re6 {[%emt 0:00:00]} 38. Kf4 {[%emt 0:00:32]} Rce8 {[%emt 0:00:30]} 39. Ng4 {[%emt 0:00:07]} (39. Nf3) 39... Ne4 {[%emt 0:01:30]} 40. Ra1 {[%emt 0:01:00]} (40. Rh2 $142) 40... g5+ {[%emt 0:01:30]} 41. Kf3 {[%emt 0:00:47]} f5 {[%emt 0:00:00]} 42. Nf2 {[%emt 0:00:00]} Nxf2 {[%emt 0:01:00]} 43. Kxf2 {[%emt 0:00:30][%mdl 4096] Endgame. KRR-KRR} Kf7 {[%emt 0:00:30]} (43... Re2+ $142 44. Kf1 Kf7) 44. Ra2 {[%emt 0:00:55]} Kg6 {[%emt 0:00:00]} 45. Rb1 {[%emt 0:00:24]} Kxh6 {[%emt 0:00:00]} 46. Rb7 {[%emt 0:00:30]} Kg6 {[%emt 0:00:30]} 47. Raa7 {[%emt 0:00:26]} h6 {[%emt 0:00:00]} 48. Rg7+ {[%emt 0:00:37]} Kh5 {[%emt 0:00:00] [#] ( -> ...Re2+)} 49. Ra3 {[%emt 0:00:02]} Re2+ {[%emt 0:00:30] Weighted Error Value: White=0.70/Black=0.42.  Mistake:       	White=8     	---        Inaccurate:     	White=5     	Black=2      OK:         	White=10    	Black=17     Best:        	White=4     	Black=3} 0-1

[Event "10th Cesme Open-A 2024"]
[Site "Cesme"]
[Date "2024.06.27"]
[Round "6"]
[White "Kirilmaz, Emre"]
[Black "Kilic, Eray"]
[Result "1/2-1/2"]
[ECO "D03"]
[WhiteElo "2195"]
[BlackElo "2443"]
[Annotator "TA"]
[PlyCount "20"]
[EventDate "2024.06.23"]
[EventType "swiss"]
[EventCountry "TUR"]
[SourceTitle "playchess.com"]
[Source "ChessBase"]
[SourceQuality "1"]
[TimeControl "5400+30"]

{[%evp 12,20,1,6,11,27,40,25,31,25,47]} 1. d4 {[%emt 0:02:00]} Nf6 {[%emt 0:01:00]} 2. Bg5 {[%emt 0:00:30]} d5 {[%emt 0:00:30]} 3. e3 {[%emt 0:00:30]} c5 {[%emt 0:00:00]} 4. c3 {[%emt 0:00:00]} e6 {[%emt 0:01:00]} 5. Nd2 {[%emt 0:00:00]} Nc6 {[%emt 0:00:30]} 6. Ngf3 {[%emt 0:00:30]} h6 {[%emt 0:00:30]} 7. Bh4 {[%emt 0:00:30]} Qb6 {[%emt 0:04:30]} 8. Rb1 {[%emt 0:02:30]} Be7 {[%emt 0:00:30]} 9. Bd3 {[%emt 0:00:00]} O-O {[%emt 0:00:30]} 10. O-O {[%emt 0:05:00]} Re8 {[%emt 0:01:30] Black got outplayed after the opening.   Weighted Error Value: White=0.00 (flawless) /Black=0.08 (flawless) .  OK:         	White=3     	---} 1/2-1/2

[Event "10th Cesme Open-A 2024"]
[Site "Cesme"]
[Date "2024.06.27"]
[Round "6"]
[White "Jafarli, Babak"]
[Black "Anacak, Hasan Gunes"]
[Result "1/2-1/2"]
[ECO "B52"]
[WhiteElo "2192"]
[BlackElo "2095"]
[Annotator "RC"]
[PlyCount "102"]
[EventDate "2024.06.23"]
[EventType "swiss"]
[EventCountry "TUR"]
[SourceTitle "playchess.com"]
[Source "ChessBase"]
[SourceQuality "1"]
[TimeControl "5400+30"]

1. e4 {[%emt 0:01:00]} c5 {[%emt 0:01:00]} 2. Nf3 {[%emt 0:00:00]} d6 {[%emt 0:00:00]} 3. Bb5+ {[%emt 0:00:00]} Bd7 {[%emt 0:01:00]} 4. Bxd7+ {[%emt 0:00:30]} Nxd7 {[%emt 0:00:30]} 5. O-O {[%emt 0:00:30]} Ngf6 {[%emt 0:00:30]} 6. Qe2 {[%emt 0:00:30]} e6 {[%emt 0:00:30]} 7. c3 {[%emt 0:00:00]} Be7 {[%emt 0:00:00]} 8. d4 {[%emt 0:00:00]} O-O {[%emt 0:00:00]} 9. Bg5 {[%emt 0:00:30]} h6 {[%emt 0:00:30]} 10. Bh4 {[%emt 0:01:30]} cxd4 {[%emt 0:06:30]} 11. cxd4 {[%emt 0:00:30]} d5 {[%emt 0:00:30]} 12. e5 {[%emt 0:00:30]} Ne4 {[%emt 0:00:30]} 13. Bxe7 {[%emt 0:00:30]} Qxe7 {[%emt 0:00:30]} 14. Nbd2 {[%emt 0:00:00]} Nxd2 {[%emt 0:00:00]} 15. Qxd2 {[%emt 0:00:00]} Nb6 {[%emt 0:01:00]} 16. b3 {[%emt 0:00:30]} Rac8 {[%emt 0:02:30]} 17. Ne1 {[%emt 0:03:30]} Rc6 {[%emt 0:04:30]} 18. f4 {[%emt 0:03:30]} Rfc8 {[%emt 0:14:30]} 19. f5 {[%emt 0:01:30]} exf5 {[%emt 0:00:30]} 20. Rxf5 {[%emt 0:00:30]} Nd7 {[%emt 0:01:30]} 21. Nd3 {[%emt 0:09:30]} Rc2 {[%emt 0:09:30]} 22. Qe1 {[%emt 0:01:30]} Qe6 {[%emt 0:07:30]} 23. Rf2 {[%emt 0:04:30]} Qb6 {[%emt 0:13:30]} 24. Qe3 {[%emt 0:01:30]} R8c3 {[%emt 0:03:30]} 25. Rxc2 {[%emt 0:11:30]} Rxc2 {[%emt 0:01:30]} 26. Ne1 {[%emt 0:00:30]} Rc6 {[%emt 0:02:30]} 27. Rd1 {[%emt 0:04:30]} Nf8 {[%emt 0:09:30]} 28. Nf3 {[%emt 0:02:30]} Rc2 {[%emt 0:04:22]} 29. Rd2 {[%emt 0:00:30]} Rc1+ {[%emt 0:03:06]} 30. Kf2 {[%emt 0:00:30]} Ne6 {[%emt 0:00:35]} 31. g3 {[%emt 0:00:30]} Qb4 {[%emt 0:01:28]} 32. Kg2 {[%emt 0:01:30]} Rc3 {[%emt 0:02:48]} 33. Qf2 {[%emt 0:02:30]} Qb6 {[%emt 0:03:01]} 34. h4 {[%emt 0:00:30]} Qc7 {[%emt 0:01:13]} 35. Ne1 {[%emt 0:01:30]} b6 {[%emt 0:01:21]} 36. Nc2 {[%emt 0:00:30]} a5 {[%emt 0:00:33]} 37. Ne3 {[%emt 0:00:00]} Qd7 {[%emt 0:01:31]} 38. Kh2 {[%emt 0:01:00]} b5 {[%emt 0:00:22]} 39. Nf5 {[%emt 0:01:30]} b4 {[%emt 0:00:38]} 40. Qe2 {[%emt 0:01:30]} Kh7 {[%emt 0:01:59]} 41. Qg4 {[%emt 0:02:30]} g6 {[%emt 0:00:58]} 42. Nd6 {[%emt 0:00:30]} h5 {[%emt 0:00:30]} 43. Qe2 {[%emt 0:00:00]} Ng7 {[%emt 0:02:24]} 44. Qg2 {[%emt 0:02:00]} Nf5 {[%emt 0:01:05]} 45. Nxf5 {[%emt 0:00:30]} Qxf5 {[%emt 0:00:00]} 46. Rf2 {[%emt 0:01:30]} Qd7 {[%emt 0:00:00]} 47. Rf6 {[%emt 0:00:30]} Rc6 {[%emt 0:00:34]} 48. Rf2 {[%emt 0:01:30]} Kg8 {[%emt 0:00:33]} 49. Qf3 {[%emt 0:00:30]} Rc7 {[%emt 0:00:24]} 50. Qf6 {[%emt 0:00:30]} Rc6 {[%emt 0:00:29]} 51. Qg5 {[%emt 0:01:30]} Kg7 {[%emt 0:00:20]} 1/2-1/2

[Event "10th Cesme Open-A 2024"]
[Site "Cesme"]
[Date "2024.06.27"]
[Round "6"]
[White "Selbes, Tamer Tarik"]
[Black "Pereverzev, Timofei"]
[Result "1-0"]
[ECO "B23"]
[WhiteElo "2183"]
[BlackElo "2019"]
[Annotator "RC"]
[PlyCount "51"]
[EventDate "2024.06.23"]
[EventType "swiss"]
[EventCountry "TUR"]
[SourceTitle "playchess.com"]
[Source "ChessBase"]
[SourceQuality "1"]
[TimeControl "5400+30"]

1. e4 {[%emt 0:01:00]} c5 {[%emt 0:01:00]} 2. Nc3 {[%emt 0:00:30]} g6 {[%emt 0:00:00]} 3. d4 {[%emt 0:00:30]} cxd4 {[%emt 0:05:00]} 4. Qxd4 {[%emt 0:00:30]} f6 {[%emt 0:00:00]} 5. Be3 {[%emt 0:01:30]} Nc6 {[%emt 0:00:00]} 6. Qd2 {[%emt 0:00:30]} e6 {[%emt 0:00:30]} 7. O-O-O {[%emt 0:02:30]} Bb4 {[%emt 0:06:30]} 8. a3 {[%emt 0:00:00]} Bxc3 {[%emt 0:07:30]} 9. Qxc3 {[%emt 0:00:00]} b6 {[%emt 0:01:30]} 10. Nf3 {[%emt 0:01:30]} Bb7 {[%emt 0:01:30]} 11. Bc4 {[%emt 0:00:30]} Qc7 {[%emt 0:01:30]} 12. Nd4 {[%emt 0:03:30]} Nxd4 {[%emt 0:00:30]} 13. Rxd4 {[%emt 0:00:30]} O-O-O {[%emt 0:03:30]} 14. Rhd1 {[%emt 0:01:30]} Ne7 {[%emt 0:03:30]} 15. Rxd7 {[%emt 0:08:30]} Rxd7 {[%emt 0:21:30]} 16. Rxd7 {[%emt 0:00:30]} Kxd7 {[%emt 0:00:00]} 17. Bxe6+ {[%emt 0:00:00]} Kd8 {[%emt 0:00:00]} 18. Qxf6 {[%emt 0:00:00]} Re8 {[%emt 0:00:30]} 19. Qd4+ {[%emt 0:00:00]} Bd5 {[%emt 0:03:30]} 20. exd5 {[%emt 0:00:00]} Qd6 {[%emt 0:06:30]} 21. Bf4 {[%emt 0:00:30]} Qc5 {[%emt 0:01:30]} 22. Qxc5 {[%emt 0:02:30]} bxc5 {[%emt 0:00:30]} 23. d6 {[%emt 0:00:30]} Rh8 {[%emt 0:07:30]} 24. Bg5 {[%emt 0:00:30]} Ke8 {[%emt 0:00:30]} 25. Bxe7 {[%emt 0:00:00]} h6 {[%emt 0:00:00]} 26. Bf6 {[%emt 1:16:00]} 1-0

[Event "10th Cesme Open-A 2024"]
[Site "Cesme"]
[Date "2024.06.27"]
[Round "6"]
[White "Ozkan, Ervin"]
[Black "Yildiz, Serdar Murat"]
[Result "1/2-1/2"]
[ECO "A48"]
[WhiteElo "2147"]
[BlackElo "2026"]
[Annotator "RC"]
[PlyCount "87"]
[EventDate "2024.06.23"]
[EventType "swiss"]
[EventCountry "TUR"]
[SourceTitle "playchess.com"]
[Source "ChessBase"]
[SourceQuality "1"]
[TimeControl "5400+30"]

1. d4 {[%emt 0:01:00]} Nf6 {[%emt 0:01:00]} 2. Bf4 {[%emt 0:01:30]} g6 {[%emt 0:00:30]} 3. e3 {[%emt 0:00:30]} Bg7 {[%emt 0:00:30]} 4. Nf3 {[%emt 0:00:00]} O-O {[%emt 0:00:00]} 5. Be2 {[%emt 0:00:00]} b6 {[%emt 0:00:00]} 6. O-O {[%emt 0:00:30]} Bb7 {[%emt 0:00:00]} 7. h3 {[%emt 0:03:30]} d6 {[%emt 0:00:00]} 8. c4 {[%emt 0:01:30]} Nbd7 {[%emt 0:00:00]} 9. Bh2 {[%emt 0:00:30]} Ne4 {[%emt 0:01:00]} 10. Nfd2 {[%emt 0:00:30]} Nxd2 {[%emt 0:01:30]} 11. Qxd2 {[%emt 0:00:30]} e5 {[%emt 0:00:00]} 12. Nc3 {[%emt 0:02:30]} Qg5 {[%emt 0:07:00]} 13. d5 {[%emt 0:00:30]} f5 {[%emt 0:01:30]} 14. Nb5 {[%emt 0:05:30]} Qd8 {[%emt 0:00:30]} 15. b4 {[%emt 0:01:30]} a6 {[%emt 0:09:30]} 16. Nc3 {[%emt 0:00:30]} Qe7 {[%emt 0:09:30]} 17. Rac1 {[%emt 0:04:30]} a5 {[%emt 0:11:30]} 18. a3 {[%emt 0:01:30]} axb4 {[%emt 0:01:30]} 19. axb4 {[%emt 0:00:30]} Bh6 {[%emt 0:05:30]} 20. Nb5 {[%emt 0:02:30]} Nf6 {[%emt 0:00:00]} 21. c5 {[%emt 0:14:30]} dxc5 {[%emt 0:06:00]} 22. d6 {[%emt 0:00:30]} cxd6 {[%emt 0:00:30]} 23. Qxd6 {[%emt 0:00:30]} Qxd6 {[%emt 0:02:30]} 24. Nxd6 {[%emt 0:00:30]} Bd5 {[%emt 0:02:30]} 25. bxc5 {[%emt 0:01:30]} bxc5 {[%emt 0:00:30]} 26. Rxc5 {[%emt 0:03:30]} f4 {[%emt 0:04:30]} 27. exf4 {[%emt 0:10:30]} exf4 {[%emt 0:00:30]} 28. Rd1 {[%emt 0:02:30]} Be6 {[%emt 0:01:30]} 29. Re5 {[%emt 0:01:30]} Ba2 {[%emt 0:01:30]} 30. Ra1 {[%emt 0:02:30]} Kh8 {[%emt 0:03:30]} 31. Re7 {[%emt 0:11:30]} Bg8 {[%emt 0:05:30]} 32. Re1 {[%emt 0:07:30]} Rad8 {[%emt 0:00:30]} 33. Ne4 {[%emt 0:02:41]} Nd5 {[%emt 0:03:30]} 34. Rb7 {[%emt 0:00:54]} Rfe8 {[%emt 0:03:56]} 35. f3 {[%emt 0:02:29]} Bg7 {[%emt 0:03:40]} 36. Bc4 {[%emt 0:02:11]} Be5 {[%emt 0:00:58]} 37. Kh1 {[%emt 0:01:23]} Ne3 {[%emt 0:02:29]} 38. Bxg8 {[%emt 0:00:39]} Kxg8 {[%emt 0:01:13]} 39. Bxf4 {[%emt 0:06:36]} Bxf4 {[%emt 0:01:05]} 40. Nf6+ {[%emt 0:00:30]} Kf8 {[%emt 0:00:00]} 41. Nxh7+ {[%emt 0:00:17]} Kg8 {[%emt 0:00:26]} 42. Nf6+ {[%emt 0:00:30]} Kf8 {[%emt 0:00:00]} 43. Nh7+ {[%emt 0:05:56]} Kg8 {[%emt 0:00:01]} 44. Nf6+ {[%emt 0:00:30]} 1/2-1/2

[Event "10th Cesme Open-A 2024"]
[Site "Cesme"]
[Date "2024.06.27"]
[Round "6"]
[White "Zakirov, Musa"]
[Black "Haznedaroglu, Kivanc"]
[Result "1-0"]
[ECO "B32"]
[WhiteElo "2112"]
[BlackElo "2359"]
[Annotator "RC"]
[PlyCount "76"]
[EventDate "2024.06.23"]
[EventType "swiss"]
[EventCountry "TUR"]
[SourceTitle "playchess.com"]
[Source "ChessBase"]
[SourceQuality "1"]
[TimeControl "5400+30"]

1. e4 {[%emt 0:01:00]} c5 {[%emt 0:01:00]} 2. Nf3 {[%emt 0:00:00]} Nc6 {[%emt 0:00:30]} 3. d4 {[%emt 0:00:00]} cxd4 {[%emt 0:00:30]} 4. Nxd4 {[%emt 0:00:30]} Qb6 {[%emt 0:00:00]} 5. Nb3 {[%emt 0:00:00]} Nf6 {[%emt 0:00:00]} 6. Bd3 {[%emt 0:01:00]} e6 {[%emt 0:00:00]} 7. O-O {[%emt 0:01:30]} Be7 {[%emt 0:00:00]} 8. c4 {[%emt 0:02:30]} d6 {[%emt 0:04:30]} 9. Nc3 {[%emt 0:01:30]} O-O {[%emt 0:00:30]} 10. Be3 {[%emt 0:00:30]} Qc7 {[%emt 0:00:00]} 11. Rc1 {[%emt 0:01:30]} Ne5 {[%emt 0:08:00]} 12. Be2 {[%emt 0:01:30]} b6 {[%emt 0:03:30]} 13. f4 {[%emt 0:08:30]} Ned7 {[%emt 0:00:00]} 14. Nd4 {[%emt 0:06:30]} Bb7 {[%emt 0:03:00]} 15. Bf3 {[%emt 0:01:30]} Rfe8 {[%emt 0:01:30]} 16. b3 {[%emt 0:04:30]} Rac8 {[%emt 0:03:30]} 17. Qc2 {[%emt 0:08:30]} Qb8 {[%emt 0:00:30]} 18. g4 {[%emt 0:01:30]} Nc5 {[%emt 0:02:30]} 19. g5 {[%emt 0:03:30]} Nfd7 {[%emt 0:00:30]} 20. Bg2 {[%emt 0:04:30]} Bf8 {[%emt 0:00:30]} 21. Rce1 {[%emt 0:01:30]} e5 {[%emt 0:05:30]} 22. Nf5 {[%emt 0:04:30]} exf4 {[%emt 0:00:00]} 23. Bxf4 {[%emt 0:00:30]} Ne6 {[%emt 0:01:00]} 24. Bg3 {[%emt 0:01:30]} Ne5 {[%emt 0:00:30]} 25. Qd2 {[%emt 0:01:30]} a6 {[%emt 0:00:30]} 26. h4 {[%emt 0:00:30]} Bc6 {[%emt 0:07:30]} 27. Rd1 {[%emt 0:03:30]} Rcd8 {[%emt 0:01:30]} 28. Nd5 {[%emt 0:03:30]} b5 {[%emt 0:03:30]} 29. Qf2 {[%emt 0:01:30]} Qb7 {[%emt 0:02:30]} 30. Nh6+ {[%emt 0:09:30]} gxh6 {[%emt 0:01:30]} 31. Nf6+ {[%emt 0:01:30]} Kh8 {[%emt 0:00:30]} 32. Bxe5 {[%emt 0:02:30]} dxe5 {[%emt 0:00:30]} 33. Qf5 {[%emt 0:00:30]} Bc5+ {[%emt 0:00:30]} 34. Kh2 {[%emt 0:00:30]} Nf8 {[%emt 0:00:00]} 35. Nxe8 {[%emt 0:01:30]} Rxe8 {[%emt 0:00:00]} 36. Qf6+ {[%emt 0:01:30]} Kg8 {[%emt 0:00:00]} 37. gxh6 {[%emt 0:00:30]} Ne6 {[%emt 0:00:00]} 38. Bh3 {[%emt 0:00:00]} Bxe4 {[%emt 0:01:30]} 1-0

[Event "10th Cesme Open-A 2024"]
[Site "Cesme"]
[Date "2024.06.27"]
[Round "6"]
[White "Isgenderova, Hayale"]
[Black "Ozen, Metehan"]
[Result "1-0"]
[ECO "C54"]
[WhiteElo "2103"]
[BlackElo "2160"]
[Annotator "RC"]
[PlyCount "73"]
[EventDate "2024.06.23"]
[EventType "swiss"]
[EventCountry "TUR"]
[SourceTitle "playchess.com"]
[Source "ChessBase"]
[SourceQuality "1"]
[TimeControl "5400+30"]

1. e4 {[%emt 0:01:00]} e5 {[%emt 0:05:00]} 2. Nf3 {[%emt 0:00:30]} Nc6 {[%emt 0:00:30]} 3. Bc4 {[%emt 0:00:30]} Nf6 {[%emt 0:00:00]} 4. d3 {[%emt 0:00:00]} Bc5 {[%emt 0:00:00]} 5. c3 {[%emt 0:00:00]} a6 {[%emt 0:00:00]} 6. Nbd2 {[%emt 0:00:00]} Ba7 {[%emt 0:00:00]} 7. Bb3 {[%emt 0:00:00]} O-O {[%emt 0:01:30]} 8. O-O {[%emt 0:00:00]} d6 {[%emt 0:00:30]} 9. h3 {[%emt 0:00:00]} h6 {[%emt 0:00:30]} 10. Re1 {[%emt 0:00:30]} Re8 {[%emt 0:00:30]} 11. Nf1 {[%emt 0:01:30]} Be6 {[%emt 0:00:30]} 12. Bc2 {[%emt 0:00:30]} d5 {[%emt 0:02:30]} 13. exd5 {[%emt 0:05:30]} Nxd5 {[%emt 0:03:30]} 14. Ng3 {[%emt 0:05:30]} Qd6 {[%emt 0:04:30]} 15. Nh4 {[%emt 0:09:30]} Qd7 {[%emt 0:00:00]} 16. Qf3 {[%emt 0:00:30]} Bc5 {[%emt 0:02:00]} 17. Nhf5 {[%emt 0:05:30]} Bf8 {[%emt 0:01:30]} 18. Re4 {[%emt 0:01:30]} Nde7 {[%emt 0:06:30]} 19. Nxh6+ {[%emt 0:04:30]} gxh6 {[%emt 0:01:30]} 20. Nh5 {[%emt 0:00:30]} Ng6 {[%emt 0:03:30]} 21. Nf6+ {[%emt 0:00:30]} Kg7 {[%emt 0:00:00]} 22. Nxd7 {[%emt 0:01:30]} Bxd7 {[%emt 0:00:00]} 23. Bxh6+ {[%emt 0:00:30]} Kg8 {[%emt 0:00:00]} 24. Bg5 {[%emt 0:00:30]} Nd8 {[%emt 0:00:00]} 25. Qh5 {[%emt 0:00:30]} Ne6 {[%emt 0:00:30]} 26. d4 {[%emt 0:00:30]} Ng7 {[%emt 0:00:30]} 27. Qe2 {[%emt 0:00:30]} exd4 {[%emt 0:00:30]} 28. cxd4 {[%emt 0:00:30]} Ne6 {[%emt 0:00:30]} 29. Qd2 {[%emt 0:00:30]} Bg7 {[%emt 0:00:30]} 30. d5 {[%emt 0:00:30]} Nef8 {[%emt 0:07:30]} 31. Rae1 {[%emt 0:13:30]} Rxe4 {[%emt 0:02:30]} 32. Bxe4 {[%emt 0:00:30]} Re8 {[%emt 0:00:00]} 33. h4 {[%emt 0:01:30]} f6 {[%emt 0:00:00]} 34. h5 {[%emt 0:01:30]} fxg5 {[%emt 0:00:30]} 35. hxg6 {[%emt 0:01:30]} Re5 {[%emt 0:00:30]} 36. d6 {[%emt 0:01:30]} c6 {[%emt 0:00:00]} 37. Bc2 {[%emt 0:00:30]} 1-0